fUSD/lending_fUSD_20240823
["ID","MTS","AMOUNT","RATE_DAILY","PERIOD"]
[335698881,1724443840178,-4450.88769383,0.00011,2]
[335698882,1724443840191,-359.44640036,0.00011,2]
[335698883,1724443840204,-998.05623126,0.00011,2]
[335698884,1724443840215,-1273.216,0.00011,2]
[335698885,1724443840227,-2466.13155549,0.00011,2]
[335698886,1724443840239,-2703.98437125,0.00011,2]
[335698887,1724443840250,-859.60446392,0.00011,2]
[335698888,1724443840263,-1034.355,0.00011,2]
[335698889,1724443840275,-2198.49212684,0.00011,2]
[335698890,1724443840286,-1626.45291562,0.00011,2]
[335698891,1724443840297,-992.57555336,0.00011,2]
[335698892,1724443840308,-5184.20181618,0.00011,2]
[335698893,1724443840319,-1032.75,0.00011,2]
[335698894,1724443840331,-971.108,0.00011,2]
[335698896,1724443840350,-460.56973873,0.00011,2]
[335698897,1724443840362,-41547.36226539,0.00011,2]
[335698910,1724443842986,-500.0,0.00011,2]
[335698911,1724443842998,-275.452,0.00011,2]
[335698912,1724443843009,-5284.6116546,0.00011,2]
[335698913,1724443843096,-5706.9748694,0.00011,2]
[335698914,1724443843107,-532.36978236,0.00011,2]
[335698915,1724443843151,-676.96199,0.00011,2]
[335698916,1724443843163,-6021.9,0.00011,2]
[335698917,1724443843174,-1311.87363377,0.00011,2]
[335698918,1724443843186,-7805.61716964,0.00011,2]
[335698919,1724443843207,-1664.07607832,0.00011,2]
[335698920,1724443843218,-7655.68224347,0.00011,2]
[335698921,1724443843229,-283070.70254513,0.00011,2]
[335698922,1724443843263,-4174.1590971,0.00011,2]
[335698976,1724443845907,-2265.95848343,0.00011,2]
[335698977,1724443845919,-37811.35699527,0.00011,2]
[335698978,1724443845930,-726.52366915,0.00011,2]
[335698979,1724443845942,-965.71228603,0.00011,2]
[335698980,1724443845953,-253.90374581,0.00011,2]
[335698981,1724443845970,-4481.46949273,0.00011,2]
[335698982,1724443845981,-2901.372,0.00011,2]
[335698983,1724443845994,-254.584,0.00011,2]
[335698984,1724443846006,-1011.36027468,0.00011,2]
[335698985,1724443846017,-3567.11591837,0.00011,2]
[335698986,1724443846029,-27500.75117138,0.00011,2]
[335698987,1724443846039,-553.67668986,0.00011,2]
[335698988,1724443846050,-315.00000008,0.00011,2]
[335698989,1724443846061,-258.90026698,0.00011,2]
[335698990,1724443846072,-10991.4096095,0.00011,2]
[335698991,1724443846241,-1122.59869064,0.00011,2]
[335698992,1724443846254,-1549.39999999,0.00011,2]
[335698993,1724443846268,-6540.0001936,0.00011,2]
[335698994,1724443846280,-59732.58149311,0.00011,2]
[335698995,1724443846292,-7659.5181716,0.00011,2]
[335698996,1724443846305,-2557.82544,0.00011,2]
[335698997,1724443846317,-2826.19400833,0.00011,2]
[335698998,1724443846491,-1026.0,0.00011,2]
[335698999,1724443887208,337.21,9.913e-05,2]
[335699000,1724443993159,1000.0,0.00027,120]
[335699001,1724443993551,1000.0,0.00027,120]
[335699002,1724444017541,500.0,0.00027,120]
[335699003,1724444362349,309.33153452,0.00025,90]
[335699004,1724444398532,344.64,8.308e-05,2]
[335699005,1724444482247,1000.082405,0.00025,61]
[335699006,1724444487930,1000.082405,0.00025,62]
[335699007,1724444490757,1000.082405,0.00025,63]
[335699008,1724444494211,1000.082405,0.00025,64]
[335699009,1724444498278,1000.082405,0.00025,68]
[335699010,1724444501417,1000.082405,0.00025,69]
[335699011,1724444505622,1000.082405,0.00025,70]
[335699012,1724444513000,1000.082405,0.00025,71]
[335699013,1724444530040,1000.082405,0.00025,75]
[335699014,1724444534055,1000.082405,0.00025,76]
[335699015,1724444537285,1000.082405,0.00025,77]
[335699016,1724444540716,1000.082405,0.00025,78]
[335699017,1724444547051,1000.082405,0.00027,120]
[335699018,1724444548191,1000.082405,0.00027,120]
[335699019,1724444555208,1000.082405,0.00027,120]
[335699020,1724444576617,1268.44968028,9.926e-05,2]
[335699021,1724444585540,1000.082405,0.00025,82]
[335699022,1724444588726,1000.082405,0.00025,83]
[335699023,1724444591176,1000.082405,0.00025,84]
[335699024,1724444594307,1000.082405,0.00025,85]
[335699025,1724444594452,1000.0,0.00027,120]
[335699026,1724444594857,1000.0,0.00027,120]
[335699027,1724444597715,1000.082405,0.00025,89]
[335699028,1724444601480,1000.082405,0.00025,90]
[335699029,1724444602295,2201.68475789,0.00010009,2]
[335699030,1724444604355,1000.082405,0.00025,91]
[335699031,1724444607510,1000.082405,0.00025,92]
[335699032,1724444619212,500.0,0.00027,120]
[335699033,1724444629721,1000.082405,0.00025,60]
[335699034,1724444632663,1000.082405,0.00025,61]
[335699035,1724444635618,1000.082405,0.00025,62]
[335699036,1724444638566,1000.082405,0.00025,63]
[335699037,1724444641786,1000.082405,0.00025,67]
[335699038,1724444645038,1000.082405,0.00025,68]
[335699039,1724444648262,1000.082405,0.00025,69]
[335699040,1724444651885,1000.082405,0.00025,70]
[335699041,1724444655093,1000.082405,0.00025,74]
[335699042,1724444658363,1000.082405,0.00025,75]
[335699043,1724444661308,1000.082405,0.00025,76]
[335699044,1724444666728,1000.082405,0.00025,77]
[335699045,1724444679222,1000.082405,0.00025,78]
[335699046,1724444679699,152.67,9.884e-05,2]
[335699047,1724444686809,1000.082405,0.00025,82]
[335699048,1724444689699,1000.082405,0.00025,83]
[335699049,1724444690420,2035.6915898,0.00027,120]
[335699050,1724444692921,1000.082405,0.00025,84]
[335699051,1724444698000,1000.082405,0.00025,85]
[335699052,1724444738970,1000.082405,0.00027,120]
[335699053,1724444740425,1000.082405,0.00027,120]
[335699054,1724444775311,23900.0,9.831e-05,2]
[335699055,1724444817832,999.082405,0.00027,120]
[335699056,1724444831010,999.082405,0.00027,120]
[335699057,1724444831058,175.95,7.082e-05,2]
[335699061,1724444840539,999.082405,0.00025,60]
[335699062,1724444863387,999.082405,0.00025,61]
[335699063,1724444866173,999.082405,0.00025,62]
[335699064,1724444870689,999.082405,0.00025,63]
[335699220,1724444904562,157.082405,0.00025,63]
[335699296,1724444908404,157.082405,0.00025,67]
[335699297,1724444911740,157.082405,0.00025,68]
[335699298,1724444915781,157.082405,0.00025,69]
[335699304,1724444930775,346.51,8.219e-05,2]
[335699305,1724444933985,157.082405,0.00025,70]
[335699306,1724444939736,157.082405,0.00025,74]
[335699307,1724444944324,157.082405,0.00025,75]
[335699308,1724444954228,157.082405,0.00025,76]
[335699309,1724444965945,360.0,9.792e-05,2]
[335699310,1724444975096,157.082405,0.00025,77]
[335699312,1724444985164,157.082405,0.00025,81]
[335699313,1724444988965,1743.33731681,0.00010009,2]
[335699325,1724444996928,6321.01967426,9.792e-05,2]
[335699326,1724444996976,258.6,9.798e-05,2]
[335699338,1724445032063,-197.34499744,0.00010026,2]
[335699340,1724445032072,-691.42106499,0.00010026,2]
[335699341,1724445032084,-1471.32776493,0.00010026,2]
[335699342,1724445032093,-312.46923065,0.00010026,2]
[335699343,1724445032102,-155.0,0.00010097,2]
[335699344,1724445032112,-300.0,0.00010099,2]
[335699345,1724445032121,-300.0,0.00010099,2]
[335699346,1724445032131,-8967.92236761,0.000101,2]
[335699347,1724445032142,-9051.37038819,0.000101,2]
[335699348,1724445032152,-640.0,0.00010136,2]
[335699349,1724445032161,-346.51,0.00010466,2]
[335699350,1724445032170,-155.0,0.00010471,2]
[335699351,1724445032179,-155.21595642,0.00010471,2]
[335699352,1724445032188,-687.59202699,0.00010471,2]
[335699353,1724445032198,-270.85650627,0.00010505,2]
[335699354,1724445032208,-454.83956636,0.00010566,2]
[335699355,1724445032217,-173.84795216,0.00010566,2]
[335699356,1724445032228,-136.15204784,0.00010566,2]
[335699357,1724445032238,-747.39790216,0.0001059,2]
[335699358,1724445032250,-599.48129784,0.0001059,2]
[335699359,1724445032259,-150.99,0.0001059,2]
[335699360,1724445032268,-95.99870216,0.00010603,2]
[335699361,1724445032280,-350.2299999,0.00010603,2]
[335699362,1724445032298,-53.77129794,0.00010603,2]
[335699363,1724445032309,-1250.89,0.00010603,2]
[335699364,1724445032318,-500.0,0.00010612,2]
[335699365,1724445032329,-500.0,0.00010621,2]
[335699366,1724445032338,-499.99,0.00010621,2]
[335699367,1724445032348,-500.0,0.00010629,2]
[335699368,1724445032358,-500.0,0.00010638,2]
[335699369,1724445032369,-474.84022223,0.00010647,2]
[335699370,1724445032381,-25.15977777,0.00010647,2]
[335699371,1724445032392,-500.0,0.00010656,2]
[335699372,1724445032402,-500.0,0.00010665,2]
[335699373,1724445032412,-500.0,0.00010673,2]
[335699374,1724445032421,-500.0,0.00010682,2]
[335699375,1724445032431,-290.7175,0.0001069,2]
[335699376,1724445032441,-107.23343978,0.00010691,2]
[335699377,1724445032454,-392.76656022,0.00010691,2]
[335699378,1724445032463,-203.9479173,0.00010699,2]
[335699379,1724445032472,-500.0,0.000107,2]
[335699380,1724445032481,-500.0,0.00010709,2]
[335699381,1724445032490,-150.0,0.00010713,2]
[335699382,1724445032500,-485.69288654,0.00010713,2]
[335699383,1724445032510,-365.91742403,0.00010713,2]
[335699384,1724445032520,-1725.0,0.00010713,2]
[335699385,1724445032530,-347.79523898,0.00010713,2]
[335699386,1724445032540,-1136.01,0.00010715,2]
[335699387,1724445032549,-957.48,0.00010716,2]
[335699390,1724445032562,-150.99,0.00010716,2]
[335699392,1724445032571,-500.0,0.00010717,2]
[335699393,1724445032581,-500.0,0.00010726,2]
[335699394,1724445032589,-500.0,0.00010735,2]
[335699395,1724445032598,-500.0,0.00010744,2]
[335699396,1724445032607,-500.0,0.00010753,2]
[335699397,1724445032617,-500.0,0.00010761,2]
[335699398,1724445032626,-500.0,0.0001077,2]
[335699399,1724445032636,-500.0,0.00010779,2]
[335699400,1724445032644,-500.0,0.00010788,2]
[335699401,1724445032654,-500.0,0.00010797,2]
[335699402,1724445032662,-499.99,0.00010797,2]
[335699403,1724445032671,-299.99,0.00010797,2]
[335699404,1724445032683,-1340.32,0.00010797,2]
[335699405,1724445032692,-218.91005949,0.00010799,2]
[335699406,1724445032702,-309.58879588,0.00010799,2]
[335699407,1724445032711,-155.0,0.00010799,2]
[335699408,1724445032720,-1139.85619888,0.00010799,2]
[335699409,1724445032729,-500.0,0.00010805,2]
[335699410,1724445032739,-12901.086,0.00010814,2]
[335699411,1724445032747,-500.0,0.00010814,2]
[335699412,1724445032757,-500.0,0.00010823,2]
[335699413,1724445032766,-380.32741541,0.00010852,2]
[335699414,1724445032775,-357.45302385,0.00010852,2]
[335699415,1724445032784,-210.6709452,0.00010852,2]
[335699416,1724445032794,-155.0,0.00010852,2]
[335699417,1724445032803,-155.0,0.00010852,2]
[335699418,1724445032812,-155.0,0.00010861,2]
[335699419,1724445032821,-203.41395605,0.00010861,2]
[335699420,1724445032830,-159.60847032,0.00010861,2]
[335699421,1724445032839,-1299.54898484,0.00010861,2]
[335699422,1724445032849,-328.33768382,0.00010862,2]
[335699423,1724445032858,-432.47832469,0.00010862,2]
[335699424,1724445032867,-155.17072618,0.00010862,2]
[335699425,1724445032877,-236.34424982,0.00010862,2]
[335699426,1724445032886,-39682.67241013,0.0001088,2]
[335699427,1724445032895,-529.01492508,0.00010888,2]
[335699428,1724445032910,-164.54862411,0.00010888,2]
[335699429,1724445032919,-4800.55749305,0.00010899,2]
[335699430,1724445032929,-2824.204191,0.000109,2]
[335699431,1724445032938,-200.0,0.000109,3]
[335699432,1724445032947,-8161.27958493,0.000109,2]
[335699433,1724445032957,-482.5109,0.000109,2]
[335699434,1724445032966,-320.30056244,0.000109,2]
[335699435,1724445032975,-158.38,0.00010959,2]
[335699436,1724445032986,-1500.0,0.00010959,2]
[335699437,1724445032995,-250.0,0.00010959,2]
[335699438,1724445033004,-9842.47,0.00010959,2]
[335699439,1724445033013,-2000.0,0.00010959,2]
[335699440,1724445033022,-2781.54,0.00010959,2]
[335699441,1724445033032,-846.04,0.00010959,2]
[335699442,1724445033043,-150.0,0.00010959,2]
[335699443,1724445033052,-200.0,0.00010973,2]
[335699444,1724445033062,-200.0,0.00010973,2]
[335699445,1724445033072,-500.0,0.00010988,2]
[335699446,1724445033081,-500.0,0.00010989,2]
[335699447,1724445033091,-500.0,0.00010989,2]
[335699448,1724445033100,-500.0,0.00010989,2]
[335699449,1724445033109,-1074.67985343,0.00010989,2]
[335699450,1724445033119,-432.21850366,0.0001099,2]
[335699451,1724445033129,-388.23479391,0.00010997,2]
[335699452,1724445033139,-150.01,0.00010999,2]
[335699453,1724445033155,-2823.46153911,0.00010999,2]
[335699454,1724445033165,-500.0,0.00010999,2]
[335699455,1724445033174,-500.0,0.00010999,2]
[335699456,1724445033184,-500.0,0.00010999,2]
[335699457,1724445033193,-481.97896704,0.00010999,2]
[335699458,1724445033203,-264.66383924,0.00010999,2]
[335699459,1724445033212,-500.0,0.00010999,2]
[335699460,1724445033221,-500.0,0.00010999,2]
[335699461,1724445033231,-500.0,0.00010999,2]
[335699462,1724445033240,-500.0,0.00010999,2]
[335699463,1724445033249,-500.0,0.00010999,2]
[335699464,1724445033259,-222.27202842,0.00010999,2]
[335699465,1724445033269,-500.0,0.00010999,2]
[335699466,1724445033279,-250.0,0.00011,2]
[335699467,1724445033293,-38903.94504316,0.00011,2]
[335699468,1724445033302,-1052.18746683,0.00011,2]
[335699469,1724445033311,-44040.81987323,0.00011,2]
[335699470,1724445033328,-2777.64856701,0.00011,2]
[335699471,1724445033339,-10730.55001468,0.00011,2]
[335699472,1724445033350,-6424.10501368,0.00011,2]
[335699473,1724445033371,-12778.766,0.00011,2]
[335699480,1724445038083,-212.61607394,0.00010799,2]
[335699483,1724445038094,-12360.79830025,0.00011,2]
[335699485,1724445038106,-2348.40046312,0.00011,2]
[335699487,1724445038117,-283.83287331,0.00011,2]
[335699490,1724445038140,-1173.123968,0.00011,2]
[335699492,1724445038152,-6903.18681663,0.00011,2]
[335699494,1724445038198,-287.75747,0.00011,2]
[335699495,1724445038209,-101210.69427975,0.00011,2]
[335699496,1724445038220,-331.07072764,0.00011,2]
[335699497,1724445038256,-1185.34288774,0.00011,2]
[335699498,1724445038316,-514799.45435938,0.00011,2]
[335699499,1724445038327,-953.60079,0.00011,2]
[335699500,1724445038337,-1006.7,0.00011,2]
[335699501,1724445038346,-360.0,0.00011016,2]
[335699502,1724445038356,-794.0,0.00011081,2]
[335699503,1724445038367,-420.0,0.00011108,2]
[335699504,1724445038377,-152.67,0.00011119,2]
[335699505,1724445038386,-164.40260801,0.00011127,2]
[335699506,1724445038397,-3005.7821,0.00011139,2]
[335699507,1724445038407,-640.0,0.00011403,2]
[335699508,1724445038416,-420.77590235,0.00011412,2]
[335699509,1724445038426,-247.33,0.00011412,2]
[335699510,1724445038436,-172.1,0.00011575,2]
[335699511,1724445038445,-3072.98,0.00011608,2]
[335699512,1724445038454,-794.0,0.00011664,2]
[335699514,1724445038463,-210.0,0.0001171,2]
[335699516,1724445038473,-255.0,0.00011742,2]
[335699518,1724445038482,-10000.0,0.00011826,2]
[335699520,1724445038491,-155.0,0.00012,2]
[335699522,1724445038500,-953.6008,0.0001209,2]
[335699524,1724445038509,-8161.27958489,0.00012122,2]
[335699526,1724445038518,-210.0,0.0001213,2]
[335699528,1724445038526,-587.0,0.00012217,2]
[335699530,1724445038535,-360.0,0.0001224,2]
[335699532,1724445038545,-794.0,0.00012278,2]
[335699534,1724445038554,-152.67,0.00012355,2]
[335699535,1724445038563,-1524.043,0.00012399,2]
[335699537,1724445038573,-3124.862,0.00012399,2]
[335699539,1724445038582,-289.0,0.00012399,2]
[335699541,1724445038592,-265.439,0.00012399,2]
[335699544,1724445038603,-210.0,0.0001255,2]
[335699546,1724445038613,-640.0,0.0001267,2]
[335699548,1724445038623,-346.51,0.00012712,2]
[335699550,1724445038633,-247.33,0.00012839,2]
[335699552,1724445038643,-433.0,0.00012867,2]
[335699554,1724445038654,-794.0,0.00012924,2]
[335699556,1724445038663,-210.0,0.0001297,2]
[335699558,1724445038672,-483.0291,0.00012986,2]
[335699560,1724445038682,-649.86351287,0.00013001,2]
[335699562,1724445038691,-2112.88261414,0.00013086,2]
[335699563,1724445038700,-2734.0,0.00013106,2]
[335699565,1724445038709,-953.6008,0.0001334,2]
[335699567,1724445038718,-8161.27958489,0.00013344,2]
[335699569,1724445038727,-210.0,0.0001339,2]
[335699571,1724445038736,-527.19740296,0.00013391,2]
[335699573,1724445038745,-823.0,0.00013438,2]
[335699575,1724445038755,-360.0,0.00013464,2]
[335699577,1724445038764,-6176.3683,0.00013504,2]
[335699579,1724445038773,-152.67,0.0001359,2]
[335699580,1724445038782,-794.0,0.00013604,2]
[335699582,1724445038791,-500.0,0.00013699,2]
[335699584,1724445038801,-317.16,0.00013699,2]
[335699586,1724445038810,-200.0,0.00013699,2]
[335699588,1724445038819,-2751.0,0.00013699,2]
[335699590,1724445038827,-443.0938,0.000137,2]
[335699592,1724445038837,-500.0,0.00013773,2]
[335699594,1724445038846,-388.23479391,0.00013797,2]
[335699596,1724445038855,-500.0,0.00013799,2]
[335699597,1724445038864,-151.0,0.000138,2]
[335699598,1724445038872,-174.29338501,0.000138,2]
[335699600,1724445038881,-198439.29756147,0.000138,3]
[335699601,1724445038893,-136765.62512691,0.000138,3]
[335699612,1724445040167,-400.07483383,0.00011826,2]
[335699614,1724445040178,-745.83403878,0.00011826,2]
[335699616,1724445040189,-1211.60274475,0.00011826,2]
[335699618,1724445040198,-977.19892662,0.000138,3]
[335699620,1724445040207,-210.0,0.0001381,2]
[335699622,1724445040216,-2000.0,0.000139,2]
[335699623,1724445040225,-151.0,0.000139,2]
[335699624,1724445040233,-151.0,0.000139,2]
[335699625,1724445040242,-151.0,0.000139,2]
[335699626,1724445040251,-151.0,0.000139,2]
[335699627,1724445040260,-151.0,0.000139,2]
[335699628,1724445040269,-151.0,0.000139,2]
[335699629,1724445040278,-151.0,0.000139,2]
[335699630,1724445040289,-8.38945602,0.000139,3]
[335699631,1724445040393,-6618.563923,0.000139,3]
[335699632,1724445040404,-419.1255448,0.000139,3]
[335699633,1724445040415,-15864.06740538,0.000139,3]
[335699634,1724445040426,-1214.79818361,0.000139,3]
[335699635,1724445040455,-470.73536654,0.000139,3]
[335699636,1724445040516,-4448.17971961,0.000139,3]
[335699637,1724445040529,-4478.44625082,0.000139,3]
[335699638,1724445040540,-5929.71529661,0.000139,3]
[335699639,1724445040554,-52314.45260923,0.000139,3]
[335699640,1724445040565,-1200.0,0.000139,3]
[335699647,1724445040738,-480.27444776,0.000139,3]
[335699657,1724445043191,-325.9438866,0.00011869,2]
[335699658,1724445043202,-302.51481159,0.00011869,2]
[335699659,1724445043212,-250.816,0.00012399,2]
[335699660,1724445043221,-278277.33476562,0.000139,3]
[335699661,1724445043230,-151.0,0.000139,2]
[335699662,1724445043239,-151.0,0.000139,2]
[335699663,1724445043249,-151.0,0.000139,2]
[335699664,1724445043258,-155.57559,0.000139,2]
[335699665,1724445043267,-151.0,0.000139,2]
[335699666,1724445043275,-155.57559,0.000139,2]
[335699667,1724445043288,-1581.38,0.00013909,2]
[335699668,1724445043297,-790.83,0.00013909,2]
[335699669,1724445043306,-790.83,0.00013909,2]
[335699670,1724445043315,-421.51,0.00013909,2]
[335699671,1724445043323,-421.51,0.00013909,2]
[335699672,1724445043334,-556.11872179,0.00013909,2]
[335699673,1724445043345,-261.23127821,0.00013909,2]
[335699674,1724445043354,-64.60182384,0.00013909,2]
[335699679,1724445046233,-2823.4615391,0.00010999,2]
[335699680,1724445046242,-356.90817616,0.00013909,2]
[335699681,1724445046252,-790.83,0.00013909,2]
[335699682,1724445046261,-421.51,0.00013909,2]
[335699683,1724445046270,-1092.9,0.00013909,2]
[335699684,1724445046280,-421.51,0.00013909,2]
[335699686,1724445046295,-421.51,0.00013909,2]
[335699688,1724445046304,-421.51,0.00013909,2]
[335699690,1724445046313,-421.51,0.00013909,2]
[335699692,1724445046322,-640.0,0.00013937,2]
[335699694,1724445046334,-150.0,0.00014,2]
[335699695,1724445046344,-500.0,0.00014164,2]
[335699697,1724445046353,-500.0,0.00014164,2]
[335699699,1724445046364,-232.34168072,0.00014164,2]
[335699701,1724445046374,-500.0,0.00014164,2]
[335699703,1724445046383,-500.0,0.00014164,2]
[335699705,1724445046393,-210.0,0.0001422,2]
[335699707,1724445046403,-408.27729176,0.00014223,2]
[335699709,1724445046413,-261.55822143,0.00014245,2]
[335699711,1724445046422,-600.70924328,0.00014245,2]
[335699713,1724445046431,-247.33,0.00014265,2]
[335699715,1724445046441,-2259.0,0.000143,2]
[335699717,1724445046451,-794.0,0.0001432,2]
[335699719,1724445046460,-1000.0,0.00014321,2]
[335699721,1724445046469,-416.86299144,0.00014398,2]
[335699723,1724445046479,-485.40726798,0.00014398,2]
[335699725,1724445046489,-500.0,0.00014561,2]
[335699727,1724445046499,-8161.27958489,0.00014567,2]
[335699729,1724445046508,-953.6008,0.0001458,2]
[335699731,1724445046517,-210.0,0.0001464,2]
[335699733,1724445046526,-360.0,0.00014688,2]
[335699735,1724445046535,-1152.0,0.0001478,2]
[335699737,1724445046545,-155.0,0.00014782,2]
[335699739,1724445046554,-152.67,0.00014826,2]
[335699740,1724445046564,-157.06,0.00014868,2]
[335699742,1724445046574,-421.51,0.00014868,2]
[335699744,1724445046583,-421.51,0.00014868,2]
[335699746,1724445046593,-421.51,0.00014868,2]
[335699748,1724445046602,-421.51,0.00014868,2]
[335699750,1724445046611,-421.51,0.00014868,2]
[335699752,1724445046621,-421.51,0.00014868,2]
[335699754,1724445046630,-421.51,0.00014868,2]
[335699756,1724445046639,-2147.0,0.000149,2]
[335699758,1724445046648,-500.0,0.000149,5]
[335699760,1724445046657,-346.51,0.00014959,2]
[335699762,1724445046667,-10094.33521259,0.0001499,3]
[335699764,1724445046679,-292.29607531,0.0001499,3]
[335699766,1724445046691,-8290.1532462,0.0001499,3]
[335699768,1724445046701,-11262.3205538,0.0001499,3]
[335699771,1724445046712,-303.4,0.0001499,3]
[335699773,1724445046728,-9085.6173889,0.0001499,3]
[335699775,1724445046737,-4560.62084188,0.00015,2]
[335699777,1724445046747,-10351.01654247,0.00015,2]
[335699780,1724445046765,-836.98345753,0.00015,2]
[335699782,1724445046774,-600.34779227,0.00015,2]
[335699784,1724445046786,-931.65220773,0.00015,2]
[335699786,1724445046795,-3690.39292386,0.00015,2]
[335699788,1724445046804,-3643.0,0.00015,10]
[335699790,1724445046814,-2500.0,0.00015,10]
[335699792,1724445046823,-150.0,0.00015,2]
[335699794,1724445046832,-210.0,0.0001506,2]
[335699795,1724445046841,-300.0,0.00015068,2]
[335699797,1724445046851,-794.0,0.00015074,2]
[335699799,1724445046861,-500.0,0.000151,2]
[335699801,1724445046870,-640.0,0.00015204,2]
[335699803,1724445046879,-1550.2939722,0.00015219,2]
[335699805,1724445046889,-432.21850366,0.00015251,2]
[335699807,1724445046898,-150.0,0.00015261,2]
[335699809,1724445046907,-150.0,0.00015261,2]
[335699811,1724445046917,-426.87,0.00015261,2]
[335699813,1724445046927,-150.0,0.00015261,2]
[335699815,1724445046936,-150.0,0.00015261,2]
[335699816,1724445046945,-426.87,0.00015261,2]
[335699818,1724445046955,-426.87,0.00015261,2]
[335699820,1724445046965,-150.0,0.00015261,2]
[335699822,1724445046975,-150.0,0.00015261,2]
[335699824,1724445046985,-210.0,0.0001548,2]
[335699827,1724445046995,-247.33,0.00015692,2]
[335699828,1724445047004,-8161.27958489,0.00015789,2]
[335699830,1724445047013,-167.0,0.00015831,2]
[335699832,1724445047022,-167.0,0.00015831,2]
[335699834,1724445047031,-953.6008,0.0001584,2]
[335699836,1724445047040,-794.0,0.00015867,2]
[335699838,1724445047050,-210.0,0.000159,2]
[335699840,1724445047059,-2000.0,0.00016,2]
[335699842,1724445047069,-286.889106,0.00016,2]
[335699844,1724445047078,-286.889106,0.00016,2]
[335699846,1724445047087,-150.0,0.00016,2]
[335699848,1724445047097,-20651.3379427,0.00016,3]
[335699850,1724445047107,-2000.0,0.0001601,2]
[335699852,1724445047116,-18676.7845341,0.0001601,3]
[335699854,1724445047126,-3966.343231,0.0001602,2]
[335699856,1724445047135,-945.53,0.00016087,2]
[335699858,1724445047144,-5850.35,0.00016116,2]
[335699860,1724445047154,-500.0,0.00016205,2]
[335699862,1724445047164,-1613.0,0.00016256,2]
[335699864,1724445047173,-210.0,0.0001632,2]
[335699866,1724445047182,-357.17,0.00016395,2]
[335699868,1724445047191,-300.0,0.00016438,2]
[335699870,1724445047200,-500.0,0.00016478,2]
[335699871,1724445047210,-167.0,0.00016484,2]
[335699873,1724445047219,-20651.3379427,0.00016492,3]
[335699875,1724445047228,-151.0,0.00016493,2]
[335699877,1724445047237,-151.0,0.00016493,2]
[335699879,1724445047247,-155.57559,0.00016493,2]
[335699881,1724445047256,-151.0,0.00016493,2]
[335699882,1724445047266,-155.57559,0.00016493,2]
[335699884,1724445047276,-151.0,0.00016493,2]
[335699887,1724445047290,-151.0,0.00016493,2]
[335699889,1724445047299,-794.0,0.00016703,2]
[335699891,1724445047308,-173.74,0.00016712,2]
[335699893,1724445047317,-210.0,0.0001674,2]
[335699895,1724445047329,-18676.7845341,0.00016894,3]
[335699896,1724445047338,-500.0,0.00016904,2]
[335699898,1724445047347,-500.0,0.00016904,2]
[335699900,1724445047357,-582.67,0.00016923,2]
[335699902,1724445047368,-531.57,0.00016923,2]
[335699904,1724445047377,-622.35,0.00016923,2]
[335699906,1724445047386,-150.0,0.00016973,2]
[335699908,1724445047395,-12826.68283026,0.0001698,3]
[335699910,1724445047407,-7824.65511244,0.0001698,3]
[335699912,1724445047418,-56030.3536024,0.0001699,3]
[335699914,1724445047427,-41302.6758854,0.0001699,3]